fUSD/lending_fUSD_20250616
["ID","MTS","AMOUNT","RATE_DAILY","PERIOD"]
[366145447,1750085474088,-490.0,0.00016931,2]
[366145448,1750085474100,-762.86,0.00016931,2]
[366145449,1750085474112,-242.861632,0.00016931,2]
[366145450,1750085474124,-490.0,0.00016931,2]
[366145451,1750085474136,-490.0,0.00016931,2]
[366145452,1750085474148,-718.34,0.00016931,2]
[366145453,1750085474160,-490.0,0.00016931,2]
[366145454,1750085474172,-490.0,0.00016931,2]
[366145455,1750085474186,-308.547349,0.00016931,2]
[366145456,1750085474198,-490.0,0.00016931,2]
[366145457,1750085474211,-490.0,0.00016931,2]
[366145458,1750085474223,-490.0,0.00016931,2]
[366145459,1750085474237,-833.26,0.00016931,2]
[366145460,1750085474249,-636.03873844,0.00016931,2]
[366145461,1750085474261,-308.547348,0.00016931,2]
[366145462,1750085474273,-781.88,0.00016931,2]
[366145463,1750085474287,-1360.97,0.00016931,2]
[366145464,1750085474300,-490.0,0.00016931,2]
[366145465,1750085474312,-490.0,0.00016931,2]
[366145466,1750085474324,-784.83,0.00016931,2]
[366145467,1750085474336,-660.95,0.00016931,2]
[366145468,1750085474349,-490.0,0.00016931,2]
[366145469,1750085474361,-490.0,0.00016931,2]
[366145470,1750085474372,-543.67,0.00016931,2]
[366145471,1750085474384,-975.13,0.00016931,2]
[366145472,1750085474396,-490.0,0.00016931,2]
[366145473,1750085474408,-1377.02,0.00016931,2]
[366145474,1750085474420,-748.44,0.00016931,2]
[366145475,1750085474432,-814.142819,0.00016931,2]
[366145476,1750085474445,-814.142819,0.00016931,2]
[366145477,1750085474457,-490.0,0.00016931,2]
[366145478,1750085474467,-814.142819,0.00016931,2]
[366145479,1750085474477,-814.142825,0.00016931,2]
[366145480,1750085474487,-309.380826,0.00016931,2]
[366145481,1750085474497,-309.380826,0.00016931,2]
[366145482,1750085474507,-490.0,0.00016931,2]
[366145483,1750085474518,-490.0,0.00016931,2]
[366145484,1750085474528,-490.0,0.00016931,2]
[366145485,1750085474538,-746.95,0.00016931,2]
[366145486,1750085474548,-309.380826,0.00016931,2]
[366145487,1750085474558,-309.380835,0.00016931,2]
[366145488,1750085474570,-490.0,0.00016931,2]
[366145489,1750085474580,-677.24,0.00016931,2]
[366145490,1750085474590,-490.0,0.00016931,2]
[366145491,1750085474599,-490.0,0.00016931,2]
[366145492,1750085474609,-490.0,0.00016931,2]
[366145493,1750085474618,-490.0,0.00016931,2]
[366145494,1750085474628,-490.0,0.00016931,2]
[366145495,1750085474637,-490.0,0.00016931,2]
[366145496,1750085474647,-490.0,0.00016931,2]
[366145497,1750085474658,-151.0,0.00016931,2]
[366145498,1750085474668,-151.0,0.00016931,2]
[366145499,1750085474679,-490.0,0.00016931,2]
[366145500,1750085474689,-490.0,0.00016931,2]
[366145501,1750085474699,-490.0,0.00016931,2]
[366145502,1750085474710,-490.0,0.00016931,2]
[366145503,1750085474721,-490.0,0.00016931,2]
[366145504,1750085474730,-623.63,0.00016931,2]
[366145505,1750085474740,-490.0,0.00016931,2]
[366145506,1750085474750,-490.0,0.00016931,2]
[366145507,1750085474760,-1233.02,0.00016931,2]
[366145508,1750085474770,-490.0,0.00016931,2]
[366145509,1750085474781,-826.57,0.00016931,2]
[366145510,1750085474790,-816.23,0.00016931,2]
[366145511,1750085474800,-490.0,0.00016931,2]
[366145512,1750085474810,-1047.89,0.00016931,2]
[366145513,1750085474821,-490.0,0.00016931,2]
[366145514,1750085474831,-490.0,0.00016931,2]
[366145515,1750085474841,-829.97,0.00016931,2]
[366145516,1750085475612,-841.76,0.00016931,2]
[366145517,1750085475638,-229.11961002,0.00016931,2]
[366145518,1750085475653,-300.0,0.00016931,2]
[366145519,1750085475663,-490.0,0.00016931,2]
[366145520,1750085475673,-151.0,0.00016931,2]
[366145521,1750085475683,-490.0,0.00016931,2]
[366145522,1750085475693,-671.11,0.00016931,2]
[366145523,1750085475703,-490.0,0.00016931,2]
[366145524,1750085475713,-1387.46,0.00016931,2]
[366145525,1750085475722,-695.69,0.00016931,2]
[366145526,1750085475732,-490.0,0.00016931,2]
[366145527,1750085475742,-1251.39,0.00016931,2]
[366145528,1750085475752,-641.05,0.00016931,2]
[366145529,1750085475762,-544.379265,0.00016931,2]
[366145530,1750085475773,-544.379265,0.00016931,2]
[366145531,1750085475782,-524.9,0.00016931,2]
[366145532,1750085475792,-490.0,0.00016931,2]
[366145533,1750085475802,-544.379265,0.00016931,2]
[366145534,1750085475812,-544.379264,0.00016931,2]
[366145535,1750085475823,-706.37,0.00016931,2]
[366145536,1750085475834,-490.0,0.00016931,2]
[366145537,1750085475843,-490.0,0.00016931,2]
[366145538,1750085475854,-230.081965,0.00016931,2]
[366145539,1750085475864,-490.0,0.00016931,2]
[366145540,1750085475874,-230.081965,0.00016931,2]
[366145541,1750085475884,-580.13485323,0.00016931,2]
[366145542,1750085475894,-230.081965,0.00016931,2]
[366145543,1750085475904,-1124.21,0.00016931,2]
[366145544,1750085475913,-230.081967,0.00016931,2]
[366145545,1750085475922,-175.574596,0.00016931,2]
[366145546,1750085475932,-490.0,0.00016931,2]
[366145547,1750085475942,-490.0,0.00016931,2]
[366145548,1750085475952,-175.574596,0.00016931,2]
[366145549,1750085475963,-870.4,0.00016931,2]
[366145550,1750085475974,-490.0,0.00016931,2]
[366145551,1750085475984,-490.0,0.00016931,2]
[366145552,1750085475994,-175.574596,0.00016931,2]
[366145553,1750085476004,-175.574604,0.00016931,2]
[366145554,1750085476014,-490.0,0.00016931,2]
[366145555,1750085476024,-528.44,0.00016931,2]
[366145556,1750085476034,-690.67,0.00016931,2]
[366145557,1750085476045,-490.0,0.00016931,2]
[366145558,1750085476053,-490.0,0.00016931,2]
[366145559,1750085476063,-490.0,0.00016931,2]
[366145560,1750085476074,-490.0,0.00016931,2]
[366145561,1750085476084,-490.0,0.00016931,2]
[366145562,1750085476094,-490.0,0.00016931,2]
[366145563,1750085476105,-605.9,0.00016931,2]
[366145564,1750085476115,-490.0,0.00016931,2]
[366145565,1750085476127,-551.37062908,0.00016931,2]
[366145566,1750085476137,-490.0,0.00016931,2]
[366145567,1750085476147,-490.0,0.00016931,2]
[366145568,1750085476157,-1054.09,0.00016931,2]
[366145569,1750085476167,-1023.66,0.00016931,2]
[366145570,1750085476178,-490.0,0.00016931,2]
[366145571,1750085476187,-151.0,0.00016931,2]
[366145572,1750085476198,-490.0,0.00016931,2]
[366145573,1750085476208,-178.75549294,0.00016931,2]
[366145574,1750085476218,-157.970042,0.00016931,2]
[366145575,1750085476227,-157.970042,0.00016931,2]
[366145576,1750085476237,-494.37,0.00016931,2]
[366145577,1750085476247,-490.0,0.00016931,2]
[366145578,1750085476257,-698.99,0.00016931,2]
[366145579,1750085476267,-157.970042,0.00016931,2]
[366145580,1750085476277,-157.97005,0.00016931,2]
[366145581,1750085476286,-490.0,0.00016931,2]
[366145582,1750085476296,-490.0,0.00016931,2]
[366145583,1750085476306,-771.68,0.00016931,2]
[366145584,1750085476316,-1688.72,0.00016931,2]
[366145585,1750085476326,-490.0,0.00016931,2]
[366145586,1750085476336,-490.0,0.00016931,2]
[366145587,1750085476345,-490.0,0.00016931,2]
[366145588,1750085476355,-1005.52,0.00016931,2]
[366145589,1750085476365,-722.385856,0.00016931,2]
[366145590,1750085476374,-796.85,0.00016931,2]
[366145591,1750085476384,-490.87,0.00016931,2]
[366145592,1750085476394,-490.0,0.00016931,2]
[366145593,1750085476404,-490.0,0.00016931,2]
[366145594,1750085476414,-490.0,0.00016931,2]
[366145595,1750085476423,-722.38585419,0.00016931,2]
[366145596,1750085476432,-490.0,0.00016931,2]
[366145597,1750085476442,-490.0,0.00016931,2]
[366145598,1750085476451,-851.3,0.00016931,2]
[366145599,1750085476461,-504.9,0.00016931,2]
[366145600,1750085476470,-490.0,0.00016931,2]
[366145601,1750085476479,-1000.12,0.00016931,2]
[366145602,1750085476489,-1897.83,0.00016931,2]
[366145603,1750085476498,-490.0,0.00016931,2]
[366145604,1750085476508,-799.66,0.00016931,2]
[366145605,1750085476518,-951.18,0.00016931,2]
[366145606,1750085476527,-537.1,0.00016931,2]
[366145607,1750085476537,-728.09,0.00016931,2]
[366145608,1750085476546,-1517.04,0.00016931,2]
[366145609,1750085476556,-490.0,0.00016931,2]
[366145610,1750085476567,-632.15,0.00016931,2]
[366145611,1750085476581,-490.0,0.00016931,2]
[366145612,1750085476591,-490.0,0.00016931,2]
[366145613,1750085476600,-904.54,0.00016931,2]
[366145614,1750085476610,-490.0,0.00016931,2]
[366145615,1750085476620,-490.0,0.00016931,2]
[366145616,1750085476630,-490.0,0.00016931,2]
[366145617,1750085476640,-1009.38,0.00016931,2]
[366145618,1750085476651,-1095.25,0.00016931,2]
[366145619,1750085476661,-898.81,0.00016931,2]
[366145620,1750085476671,-490.0,0.00016931,2]
[366145621,1750085476680,-1156.19,0.00016931,2]
[366145622,1750085476690,-1343.95,0.00016931,2]
[366145623,1750085476700,-490.0,0.00016931,2]
[366145624,1750085476710,-1477.63,0.00016931,2]
[366145625,1750085476720,-347.2116,0.00016931,2]
[366145626,1750085476730,-347.2116,0.00016931,2]
[366145627,1750085476740,-165.03180165,0.00016931,2]
[366145628,1750085476750,-568.4,0.00016931,2]
[366145629,1750085476759,-347.2116,0.00016931,2]
[366145630,1750085476769,-347.211594,0.00016931,2]
[366145631,1750085476778,-490.0,0.00016931,2]
[366145632,1750085476787,-1071.71,0.00016931,2]
[366145633,1750085476796,-1216.58,0.00016931,2]
[366145634,1750085476806,-580.72614302,0.00016931,2]
[366145635,1750085476815,-490.0,0.00016931,2]
[366145636,1750085476825,-490.0,0.00016931,2]
[366145637,1750085476835,-517.31075152,0.00016931,2]
[366145638,1750085476844,-490.0,0.00016931,2]
[366145639,1750085476853,-490.0,0.00016931,2]
[366145640,1750085476863,-490.0,0.00016931,2]
[366145641,1750085476873,-490.0,0.00016931,2]
[366145642,1750085476884,-490.0,0.00016931,2]
[366145643,1750085476894,-490.0,0.00016931,2]
[366145644,1750085476905,-393.636506,0.00016931,2]
[366145645,1750085476915,-393.636506,0.00016931,2]
[366145646,1750085476924,-490.0,0.00016931,2]
[366145647,1750085476934,-887.06,0.00016931,2]
[366145648,1750085476943,-490.0,0.00016931,2]
[366145649,1750085476952,-393.636506,0.00016931,2]
[366145650,1750085476962,-393.636506,0.00016931,2]
[366145651,1750085476972,-490.0,0.00016931,2]
[366145652,1750085476981,-490.0,0.00016931,2]
[366145653,1750085476991,-490.0,0.00016931,2]
[366145654,1750085477000,-490.0,0.00016931,2]
[366145655,1750085477010,-387.60922325,0.00016931,2]
[366145656,1750085477019,-490.0,0.00016931,2]
[366145657,1750085477029,-490.0,0.00016931,2]
[366145658,1750085477039,-1369.33,0.00016931,2]
[366145659,1750085477048,-1492.3,0.00016931,2]
[366145660,1750085477058,-874.58,0.00016931,2]
[366145661,1750085477068,-658.45,0.00016931,2]
[366145662,1750085477077,-1535.9,0.00016931,2]
[366145663,1750085477087,-490.0,0.00016931,2]
[366145664,1750085477097,-1765.34,0.00016931,2]
[366145665,1750085477107,-490.0,0.00016931,2]
[366145666,1750085477117,-490.0,0.00016931,2]
[366145667,1750085477127,-490.0,0.00016931,2]
[366145668,1750085477137,-956.4,0.00016931,2]
[366145669,1750085477146,-250.0,0.00016931,2]
[366145670,1750085477156,-490.0,0.00016931,2]
[366145671,1750085477166,-724.61,0.00016931,2]
[366145672,1750085477176,-490.0,0.00016931,2]
[366145673,1750085477186,-490.0,0.00016931,2]
[366145674,1750085477196,-613.18,0.00016931,2]
[366145675,1750085477206,-490.0,0.00016931,2]
[366145676,1750085477216,-490.0,0.00016931,2]
[366145677,1750085477226,-1554.55,0.00016931,2]
[366145678,1750085477236,-490.0,0.00016931,2]
[366145679,1750085477246,-969.48,0.00016931,2]
[366145680,1750085477255,-683.14,0.00016931,2]
[366145681,1750085477265,-1094.8,0.00016931,2]
[366145682,1750085477275,-490.0,0.00016931,2]
[366145683,1750085477285,-174.26232367,0.00016931,2]
[366145684,1750085477295,-838.75,0.00016931,2]
[366145685,1750085477305,-780.68,0.00016931,2]
[366145686,1750085477315,-165.175623,0.00016931,2]
[366145687,1750085477326,-746.35,0.00016931,2]
[366145688,1750085477335,-871.88,0.00016931,2]
[366145689,1750085477345,-1090.713649,0.00016931,2]
[366145690,1750085477355,-1090.713649,0.00016931,2]
[366145691,1750085477364,-165.175629,0.00016931,2]
[366145692,1750085477374,-1090.713649,0.00016931,2]
[366145693,1750085477384,-1090.713657,0.00016931,2]
[366145694,1750085477393,-490.0,0.00016931,2]
[366145695,1750085477403,-490.0,0.00016931,2]
[366145696,1750085477413,-490.0,0.00016931,2]
[366145697,1750085477422,-668.22,0.00016931,2]
[366145698,1750085477432,-340.95055331,0.00016931,2]
[366145699,1750085477442,-490.0,0.00016931,2]
[366145700,1750085477451,-1136.16,0.00016931,2]
[366145701,1750085477460,-940.11,0.00016931,2]
[366145702,1750085477470,-1066.89,0.00016931,2]
[366145703,1750085477479,-919.81,0.00016931,2]
[366145704,1750085477489,-490.0,0.00016931,2]
[366145705,1750085477498,-7025.05,0.00016931,2]
[366145706,1750085477508,-490.0,0.00016931,2]
[366145707,1750085477518,-3582.35,0.00016931,2]
[366145708,1750085477527,-4600.74,0.00016931,2]
[366145709,1750085477537,-2855.05,0.00016931,2]
[366145710,1750085477547,-490.0,0.00016931,2]
[366145711,1750085477557,-490.0,0.00016931,2]
[366145712,1750085477567,-490.0,0.00016931,2]
[366145713,1750085477581,-1416.13,0.00016931,2]
[366145714,1750085477592,-490.0,0.00016931,2]
[366145715,1750085477602,-1172.28,0.00016931,2]
[366145716,1750085477613,-506.21,0.00016931,2]
[366145717,1750085477623,-12698.93,0.00016931,2]
[366145718,1750085477632,-14347.48,0.00016931,2]
[366145719,1750085477642,-1722.47,0.00016931,2]
[366145720,1750085477652,-922.46,0.00016931,2]
[366145721,1750085477662,-490.0,0.00016931,2]
[366145722,1750085477672,-490.0,0.00016931,2]
[366145723,1750085477681,-3271.12,0.00016931,2]
[366145724,1750085477691,-994.13,0.00016931,2]
[366145725,1750085477700,-921.32,0.00016931,2]
[366145726,1750085477710,-1985.05,0.00016931,2]
[366145727,1750085477720,-730.56,0.00016931,2]
[366145728,1750085477729,-490.0,0.00016931,2]
[366145729,1750085477739,-630.15669038,0.00016931,2]
[366145730,1750085477749,-587.05,0.00016931,2]
[366145731,1750085477758,-2310.65,0.00016931,2]
[366145732,1750085477769,-490.0,0.00016931,2]
[366145733,1750085477778,-1269.3,0.00016931,2]
[366145734,1750085477789,-3230.74,0.00016931,2]
[366145735,1750085477799,-1446.71,0.00016931,2]
[366145736,1750085477809,-490.0,0.00016931,2]
[366145737,1750085477820,-682.14,0.00016931,2]
[366145738,1750085477829,-1313.55,0.00016931,2]
[366145739,1750085477839,-596.68,0.00016931,2]
[366145740,1750085477849,-711.26,0.00016931,2]
[366145741,1750085477858,-1540.3,0.00016931,2]
[366145742,1750085477867,-1199.04,0.00016931,2]
[366145743,1750085477957,-495.65,0.00016931,2]
[366145744,1750085477967,-490.0,0.00016931,2]
[366145745,1750085477977,-490.0,0.00016931,2]
[366145746,1750085477987,-490.0,0.00016931,2]
[366145747,1750085477996,-204.446949,0.00016931,2]
[366145748,1750085478006,-204.446949,0.00016931,2]
[366145749,1750085478015,-882.83,0.00016931,2]
[366145750,1750085478025,-981.06,0.00016931,2]
[366145751,1750085478035,-3924.34,0.00016931,2]
[366145752,1750085478045,-522.51,0.00016931,2]
[366145753,1750085478054,-490.0,0.00016931,2]
[366145754,1750085478064,-1124.52,0.00016931,2]
[366145755,1750085478075,-564.69,0.00016931,2]
[366145756,1750085478085,-490.0,0.00016931,2]
[366145757,1750085478096,-204.446949,0.00016931,2]
[366145758,1750085478106,-204.446947,0.00016931,2]
[366145759,1750085478116,-929.4,0.00016931,2]
[366145760,1750085478126,-1873.73,0.00016931,2]
[366145761,1750085478135,-828.81,0.00016931,2]
[366145762,1750085478145,-1171.8,0.00016931,2]
[366145763,1750085478155,-2637.35,0.00016931,2]
[366145764,1750085478165,-2214.56,0.00016931,2]
[366145765,1750085478175,-490.0,0.00016931,2]
[366145766,1750085478185,-1176.5,0.00016931,2]
[366145767,1750085478195,-1496.61,0.00016931,2]
[366145768,1750085478205,-1553.96,0.00016931,2]
[366145769,1750085478215,-876.96,0.00016931,2]
[366145770,1750085478225,-2813.38,0.00016931,2]
[366145771,1750085478235,-1759.52,0.00016931,2]
[366145772,1750085478245,-490.0,0.00016931,2]
[366145773,1750085478256,-1567.16,0.00016931,2]
[366145774,1750085478266,-5139.14,0.00016931,2]
[366145775,1750085478276,-2508.73,0.00016931,2]
[366145776,1750085478287,-490.0,0.00016931,2]
[366145777,1750085478297,-451.45821378,0.00016931,2]
[366145778,1750085478308,-5096.53,0.00016931,2]
[366145779,1750085478321,-1207.79,0.00016931,2]
[366145780,1750085478333,-2054.25,0.00016931,2]
[366145781,1750085478343,-1118.22,0.00016931,2]
[366145782,1750085478353,-490.0,0.00016931,2]
[366145783,1750085478363,-723.83,0.00016931,2]
[366145784,1750085478373,-1762.64,0.00016931,2]
[366145785,1750085478383,-2019.85,0.00016931,2]
[366145786,1750085478393,-490.0,0.00016931,2]
[366145787,1750085478404,-600.93,0.00016931,2]
[366145788,1750085478414,-2547.01,0.00016931,2]
[366145789,1750085478424,-310.37793,0.00016931,2]
[366145790,1750085478435,-1445.19,0.00016931,2]
[366145791,1750085478445,-3570.53,0.00016931,2]
[366145792,1750085478455,-310.37793,0.00016931,2]
[366145793,1750085478465,-1524.47,0.00016931,2]
[366145794,1750085478477,-930.94,0.00016931,2]
[366145795,1750085478487,-310.37793,0.00016931,2]
[366145796,1750085478497,-310.377922,0.00016931,2]
[366145797,1750085478507,-1280.44,0.00016931,2]
[366145798,1750085478516,-630.04,0.00016931,2]
[366145799,1750085478527,-490.0,0.00016931,2]
[366145800,1750085478537,-583.66,0.00016931,2]
[366145801,1750085478546,-1589.9,0.00016931,2]
[366145802,1750085478556,-490.0,0.00016931,2]
[366145803,1750085478566,-480.27195635,0.00016931,2]
[366145804,1750085478585,-823.81,0.00016931,2]
[366145805,1750085478595,-1066.27,0.00016931,2]
[366145806,1750085478605,-1038.97,0.00016931,2]
[366145807,1750085478615,-490.0,0.00016931,2]
[366145808,1750085478625,-490.0,0.00016931,2]
[366145809,1750085478635,-490.0,0.00016931,2]
[366145810,1750085478645,-194.139107,0.00016931,2]
[366145811,1750085478656,-1290.54,0.00016931,2]
[366145812,1750085478668,-1005.98,0.00016931,2]
[366145813,1750085478679,-769.59,0.00016931,2]
[366145814,1750085478689,-3151.35,0.00016931,2]
[366145815,1750085478699,-226.046328,0.00016931,2]
[366145816,1750085478709,-841.66,0.00016931,2]
[366145817,1750085478719,-226.046328,0.00016931,2]
[366145818,1750085478729,-490.0,0.00016931,2]
[366145819,1750085478739,-4229.39,0.00016931,2]
[366145820,1750085478749,-708.86,0.00016931,2]
[366145821,1750085478759,-1313.79,0.00016931,2]
[366145822,1750085478769,-490.0,0.00016931,2]
[366145823,1750085478779,-8149.91,0.00016931,2]
[366145824,1750085478788,-490.0,0.00016931,2]
[366145825,1750085478798,-226.046328,0.00016931,2]
[366145826,1750085478808,-226.046327,0.00016931,2]
[366145827,1750085478821,-3405.41,0.00016931,2]
[366145828,1750085478831,-912.84,0.00016931,2]
[366145829,1750085478842,-1514.75,0.00016931,2]
[366145830,1750085478852,-1474.72,0.00016931,2]
[366145831,1750085478863,-1602.71,0.00016931,2]
[366145832,1750085478872,-209.598752,0.00016931,2]
[366145833,1750085478882,-876.89,0.00016931,2]
[366145834,1750085478892,-6681.76,0.00016931,2]
[366145835,1750085478903,-1013.19,0.00016931,2]
[366145836,1750085478913,-1810.73,0.00016931,2]
[366145837,1750085478922,-1886.46,0.00016931,2]
[366145838,1750085478932,-209.598758,0.00016931,2]
[366145839,1750085478942,-490.0,0.00016931,2]
[366145840,1750085478952,-490.0,0.00016931,2]
[366145841,1750085478962,-935.1,0.00016931,2]
[366145842,1750085478972,-631.76,0.00016931,2]
[366145843,1750085478983,-756.97,0.00016931,2]
[366145844,1750085478993,-1625.69,0.00016931,2]
[366145845,1750085479003,-490.0,0.00016931,2]
[366145846,1750085479012,-1300.62,0.00016931,2]
[366145847,1750085479022,-512.381056,0.00016931,2]
[366145848,1750085479032,-512.381056,0.00016931,2]
[366145849,1750085479041,-765.57,0.00016931,2]
[366145850,1750085479051,-1186.24,0.00016931,2]
[366145851,1750085479061,-490.0,0.00016931,2]
[366145852,1750085479073,-695.33,0.00016931,2]
[366145853,1750085479084,-512.381056,0.00016931,2]
[366145854,1750085479095,-490.0,0.00016931,2]
[366145855,1750085479106,-512.381062,0.00016931,2]
[366145856,1750085479116,-1439.81,0.00016931,2]
[366145857,1750085479126,-490.0,0.00016931,2]
[366145858,1750085479136,-909.82,0.00016931,2]
[366145859,1750085479146,-490.0,0.00016931,2]
[366145860,1750085479156,-950.07,0.00016931,2]
[366145861,1750085479166,-813.45,0.00016931,2]
[366145862,1750085479177,-7133.88,0.00016931,2]
[366145863,1750085479187,-703.49,0.00016931,2]
[366145864,1750085479197,-4587.22,0.00016931,2]
[366145865,1750085479207,-490.0,0.00016931,2]
[366145866,1750085479217,-490.0,0.00016931,2]
[366145867,1750085479227,-490.0,0.00016931,2]
[366145868,1750085479238,-490.0,0.00016931,2]
[366145869,1750085479248,-1514.52,0.00016931,2]
[366145870,1750085479258,-694.67,0.00016931,2]
[366145871,1750085479268,-490.0,0.00016931,2]
[366145872,1750085479278,-2247.68,0.00016931,2]
[366145873,1750085479288,-490.0,0.00016931,2]
[366145874,1750085479298,-151.0,0.00016931,2]
[366145875,1750085479307,-613.03,0.00016931,2]
[366145876,1750085479317,-907.22,0.00016931,2]
[366145877,1750085479327,-7372.53,0.00016931,2]
[366145878,1750085479337,-490.0,0.00016931,2]
[366145879,1750085479347,-820.22,0.00016931,2]
[366145880,1750085479357,-490.0,0.00016931,2]
[366145881,1750085479366,-631.74,0.00016931,2]
[366145882,1750085479376,-1710.13,0.00016931,2]
[366145883,1750085479386,-2785.2,0.00016931,2]
[366145884,1750085479396,-994.97,0.00016931,2]
[366145885,1750085479406,-2347.08,0.00016931,2]
[366145886,1750085479415,-490.0,0.00016931,2]
[366145887,1750085479425,-538.0,0.00016931,2]
[366145888,1750085479434,-639.19,0.00016931,2]
[366145889,1750085479445,-5169.92,0.00016931,2]
[366145890,1750085479455,-490.0,0.00016931,2]
[366145891,1750085479464,-4074.71,0.00016931,2]
[366145892,1750085479474,-753.23,0.00016931,2]
[366145893,1750085479483,-2661.97,0.00016931,2]
[366145894,1750085479493,-2048.72,0.00016931,2]
[366145895,1750085479502,-16568.9,0.00016931,2]
[366145896,1750085479512,-490.0,0.00016931,2]
[366145897,1750085479521,-671.6,0.00016931,2]
[366145898,1750085479531,-490.0,0.00016931,2]
[366145899,1750085479541,-990.72,0.00016931,2]
[366145900,1750085479551,-1012.76,0.00016931,2]
[366145901,1750085479561,-490.0,0.00016931,2]
[366145902,1750085479574,-892.07,0.00016931,2]
[366145903,1750085479586,-798.34,0.00016931,2]
[366145904,1750085479596,-1576.84,0.00016931,2]
[366145905,1750085479607,-490.0,0.00016931,2]
[366145906,1750085479617,-534.96,0.00016931,2]
[366145907,1750085479627,-810.56,0.00016931,2]
[366145908,1750085479637,-614.55,0.00016931,2]
[366145909,1750085479647,-2263.25,0.00016931,2]
[366145910,1750085479658,-931.84,0.00016931,2]
[366145911,1750085479668,-968.72,0.00016931,2]
[366145912,1750085479678,-536.29,0.00016931,2]
[366145913,1750085479689,-1577.24,0.00016931,2]
[366145914,1750085479700,-733.4,0.00016931,2]
[366145915,1750085479710,-955.98,0.00016931,2]
[366145916,1750085479719,-490.0,0.00016931,2]
[366145917,1750085479729,-817.73,0.00016931,2]
[366145918,1750085479738,-785.68,0.00016931,2]
[366145919,1750085479748,-2376.14,0.00016931,2]
[366145920,1750085479758,-1581.21,0.00016931,2]
[366145921,1750085479767,-3333.54,0.00016931,2]
[366145922,1750085479778,-925.89,0.00016931,2]
[366145923,1750085479787,-490.0,0.00016931,2]
[366145924,1750085479796,-490.0,0.00016931,2]
[366145925,1750085479806,-490.0,0.00016931,2]
[366145926,1750085479816,-602.82,0.00016931,2]
[366145927,1750085479826,-778.82,0.00016931,2]
[366145928,1750085479836,-719.15,0.00016931,2]
[366145929,1750085479845,-972.31,0.00016931,2]
[366145930,1750085479855,-490.0,0.00016931,2]
[366145931,1750085479865,-667.25,0.00016931,2]
[366145932,1750085479875,-1050.65,0.00016931,2]
[366145933,1750085479884,-689.33,0.00016931,2]
[366145934,1750085479894,-16618.58,0.00016931,2]
[366145935,1750085479904,-16045.49,0.00016931,2]
[366145936,1750085479914,-796.52,0.00016931,2]
[366145937,1750085479924,-1454.53,0.00016931,2]
[366145938,1750085479934,-885.28,0.00016931,2]
[366145939,1750085479944,-689.29,0.00016931,2]
[366145940,1750085479954,-531.5,0.00016931,2]
[366145941,1750085479964,-1036.89,0.00016931,2]
[366145942,1750085479974,-1146.32,0.00016931,2]
[366145943,1750085479984,-6956.13,0.00016931,2]
[366145944,1750085479995,-2878.73,0.00016931,2]
[366145945,1750085480004,-1268.5,0.00016931,2]
[366145946,1750085480014,-200.0,0.00016949,4]